bitfinex-derivatives/quotes_BNBF0:USTF0_20241231
["timestamp","ask_amount","ask_price","bid_price","bid_amount"]
[1735609235299,0.28487593,702.06,700.73,1.06707791]
[1735609236401,0.28487593,702.06,700.7,1.06707791]
[1735609237595,0.28487593,702.06,700.78,1.06707791]
[1735609239001,0.28487593,702.06,700.77,1.06707791]
[1735609240296,0.28487593,702.06,701.04,1.06707791]
[1735609241402,0.28487593,702.06,701.1,1.06707791]
[1735609242697,0.28487593,702.06,701.03,1.06707791]
[1735609243603,0.28487593,702.06,700.99,1.06707791]
[1735609244599,0.28487593,702.06,700.98,1.06707791]
[1735609246005,0.28487593,702.06,700.97,1.06707791]
[1735609247305,0.28487593,702.06,700.82,1.06707791]
[1735609248405,0.28487593,702.06,700.8,1.06707791]
[1735609249506,0.28487593,702.06,700.55,1.06707791]
[1735609250006,0.28487593,702.06,700.56,0.28548589]
[1735609254006,0.28487593,702.06,700.66,1.06707791]
[1735609254207,0.28487593,702.06,700.67,0.28544107]
[1735609255010,0.28487593,702.06,700.75,1.06707791]
[1735609255212,0.28487593,702.06,700.76,0.28540441]
[1735609256102,0.28487593,702.06,700.97,1.06707791]
[1735609258513,0.28487593,702.06,700.92,1.06707791]
[1735609259909,0.28487593,702.06,700.86,1.06707791]
[1735609260906,0.28487593,702.06,700.79,1.06707791]
[1735609262309,0.28487593,702.06,700.78,1.06707791]
[1735609263314,0.28487593,702.06,700.85,1.06707791]
[1735609265317,0.28487593,702.06,700.87,1.06707791]
[1735609266817,0.28487593,702.06,700.76,0.28540441]
[1735609270717,0.28487593,702.06,700.53,1.06707791]
[1735609270913,0.28487593,702.06,700.5,1.06707791]
[1735609272122,0.28487593,702.06,700.46,1.06707791]
[1735609272825,0.28487593,702.06,700.46,1.35260456]
[1735609273218,0.28487593,702.06,700.49,1.06707791]
[1735609273423,0.28487593,702.06,700.5,0.28551034]
[1735609274019,0.28487593,702.06,700.85,1.06707791]
[1735609275327,0.28487593,702.06,700.88,1.06707791]
[1735609275922,0.28487593,702.06,700.83,1.06707791]
[1735609277119,0.28487593,702.06,700.5,0.28551034]
[1735609294734,0.28487593,702.06,700.53,1.06707791]
[1735609295835,0.28487593,702.06,700.54,1.35257195]
[1735609296035,0.28487593,702.06,700.55,0.28548997]
[1735609297038,0.28487593,702.06,700.6,1.06707791]
[1735609298241,0.28487593,702.06,700.62,1.06707791]
[1735609299339,0.28487593,702.06,700.7,1.06707791]
[1735609300442,0.28487593,702.06,700.73,1.06707791]
[1735609301347,0.28487593,702.06,700.77,1.06707791]
[1735609302646,0.28487593,702.06,700.64,1.06707791]
[1735609303843,0.28487593,702.06,700.72,1.06707791]
[1735609305143,0.28487593,702.06,700.69,1.06707791]
[1735609306148,0.28487593,702.06,700.55,0.28548997]
[1735609306149,0.28487593,702.06,700.76,1.06707791]
[1735609306347,0.28487593,702.06,700.77,0.28540034]
[1735609307145,0.28487593,702.06,700.96,1.06707791]
[1735609308545,0.28487593,702.06,700.93,1.06707791]
[1735609309956,0.28487593,702.06,700.9,1.06707791]
[1735609311254,0.28487593,702.06,700.91,0.28534333]
[1735609312455,0.28487593,702.06,701.01,1.06707791]
[1735609312655,1.48784711,702.39,701.01,1.06707791]
[1735609313552,1.48784711,702.39,701.02,0.28529856]
[1735609315254,1.05200799,703.04,701.02,0.28529856]
[1735609315558,1.4876245,702.49,701.02,0.28529856]
[1735609315751,0.2845193,702.94,701.02,0.28529856]
[1735609315953,1.48756091,702.49,701.02,0.28529856]
[1735609316151,0.2845193,702.94,701.02,0.28529856]
[1735609316353,0.2620674,702.93,701.02,0.28529856]
[1735609316656,0.28453144,702.91,701.02,0.28529856]
[1735609316855,0.2620674,702.9,701.02,0.28529856]
[1735609317560,0.28454359,702.88,701.02,0.28529856]
[1735609317853,0.26203671,702.87,701.02,0.28529856]
[1735609318059,0.28455573,702.85,701.02,0.28529856]
[1735609318252,0.26203671,702.84,701.02,0.28529856]
[1735609318451,0.28456788,702.82,701.02,0.28529856]
[1735609318857,0.26204398,702.81,701.02,0.28529856]
[1735609319161,0.28458003,702.79,701.02,0.28529856]
[1735609321359,0.26205052,702.78,701.02,0.28529856]
[1735609321560,0.28459217,702.76,701.02,0.28529856]
[1735609327671,1.4877835,702.75,701.02,0.28529856]
[1735609329170,0.28460432,702.73,701.02,0.28529856]
[1735609331370,0.26208075,702.72,701.02,0.28529856]
[1735609331771,0.28461647,702.7,701.02,0.28529856]
[1735609336476,0.28461647,702.7,701.04,1.06707791]
[1735609336775,0.28461647,702.7,701.05,0.28528635]
[1735609337674,0.28461647,702.7,701.12,1.06707791]
[1735609338678,0.28461647,702.7,701.05,0.28528635]
[1735609338679,0.28461647,702.7,701.13,1.06707791]
[1735609339782,0.28461647,702.7,701.18,1.06707791]
[1735609341082,0.28461647,702.7,701.19,1.06707791]
[1735609341883,0.26203835,702.69,701.19,1.06707791]
[1735609342075,0.26203835,702.69,701.05,0.28528635]
[1735609342076,0.28462458,702.68,701.23,1.06707791]
[1735609342274,0.26203835,702.67,701.23,1.06707791]
[1735609342476,0.28462458,702.68,701.23,1.06707791]
[1735609342683,1.4873172,702.66,701.23,1.06707791]
[1735609343181,1.4873172,702.66,701.14,1.06707791]
[1735609344183,0.28463673,702.65,701.14,1.06707791]
[1735609344385,0.28463673,702.65,701.11,1.06707791]
[1735609345379,0.28463673,702.65,701.16,1.06707791]
[1735609346283,0.28463673,702.65,701.2,1.06707791]
[1735609347285,0.28463673,702.65,701.21,1.06707791]
[1735609348782,0.28463673,702.65,701.26,1.06707791]
[1735609349686,0.28463673,702.65,701.44,1.06707791]
[1735609350688,0.28463673,702.65,701.4,1.06707791]
[1735609351680,0.28463673,702.65,701.42,1.06707791]
[1735609352583,0.28463673,702.65,701.39,1.06707791]
[1735609353888,0.28463673,702.65,701.05,1.56577985]
[1735609353889,0.28463673,702.65,701.36,1.06707791]
[1735609355290,0.28463673,702.65,701.33,1.06707791]
[1735609356388,0.28463673,702.65,701.4,1.06707791]
[1735609357595,0.28463673,702.65,701.39,1.06707791]
[1735609358596,0.28463673,702.65,701.05,0.28528635]
[1735609358597,0.28463673,702.65,701.38,1.06707791]
[1735609359695,0.28463673,702.65,701.46,1.06707791]
[1735609360489,0.28463673,702.65,701.48,1.06707791]
[1735609362100,0.28463673,702.65,701.49,1.06707791]
[1735609363400,0.28463673,702.65,701.51,1.06707791]
[1735609364200,0.28463673,702.65,701.52,1.06707791]
[1735609365299,0.28463673,702.65,701.57,1.06707791]
[1735609367201,0.28463673,702.65,701.54,1.06707791]
[1735609368003,0.28463673,702.65,701.53,1.06707791]
[1735609369098,0.28463673,702.65,701.56,1.06707791]
[1735609370100,0.28463673,702.65,701.58,1.06707791]
[1735609371403,0.28463673,702.65,701.6,1.06707791]
[1735609372506,0.28463673,702.65,701.62,1.06707791]
[1735609373405,0.28463673,702.65,701.65,1.06707791]
[1735609374611,0.28463673,702.65,701.7,1.06707791]
[1735609375913,0.28463673,702.65,701.73,1.06707791]
[1735609377709,0.28463673,702.65,701.74,1.06707791]
[1735609379012,0.28463673,702.65,701.67,1.06707791]
[1735609380207,0.28463673,702.65,701.69,1.06707791]
[1735609381514,0.28463673,702.65,701.63,1.06707791]
[1735609382313,0.28463673,702.65,701.33,1.56566595]
[1735609382314,0.28463673,702.65,701.68,1.06707791]
[1735609383217,0.28463673,702.65,701.74,1.06707791]
[1735609384115,0.28463673,702.65,701.33,0.28517245]
[1735609384116,0.28463673,702.65,701.73,1.06707791]
[1735609385217,0.28463673,702.65,701.75,1.06707791]
[1735609386320,0.28463673,702.65,701.77,1.06707791]
[1735609387419,0.28463673,702.65,701.78,1.06707791]
[1735609388820,0.28463673,702.65,701.83,1.06707791]
[1735609392022,0.28463673,702.65,701.84,1.06707791]
[1735609392920,0.28463673,702.65,701.86,1.06707791]
[1735609395925,0.28463673,702.65,701.84,1.06707791]
[1735609397024,0.28463673,702.65,701.6,1.06707791]
[1735609397921,0.28463673,702.65,701.64,1.06707791]
[1735609399925,0.28463673,702.65,701.63,1.06707791]
[1735609400726,0.28463673,702.65,701.59,1.06707791]
[1735609401927,0.28463673,702.65,701.57,1.06707791]
[1735609403126,0.28463673,702.65,701.59,1.06707791]
[1735609404128,0.28463673,702.65,701.55,1.06707791]
[1735609405728,0.28463673,702.65,701.62,1.06707791]
[1735609406529,0.28463673,702.65,701.53,1.06707791]
[1735609407730,0.28463673,702.65,701.47,1.06707791]
[1735609408631,0.28463673,702.65,700.79,2.17861741]
[1735609408632,0.28463673,702.65,701.45,1.06707791]
[1735609409725,0.28463673,702.65,701.52,1.06707791]
[1735609410629,0.28463673,702.65,701.58,1.06707791]
[1735609412030,0.28463673,702.65,701.73,1.06707791]
[1735609413429,0.28463673,702.65,701.83,1.06707791]
[1735609414430,0.28463673,702.65,701.7,1.06707791]
[1735609415726,0.28463673,702.65,701.68,1.06707791]
[1735609416931,0.28463673,702.65,701.69,1.06707791]
[1735609420632,0.28463673,702.65,701.74,1.06707791]
[1735609421836,0.28463673,702.65,701.76,1.06707791]
[1735609422029,1.05200799,703.27,701.76,1.06707791]
[1735609422234,1.48638548,703.01,701.76,1.06707791]
[1735609422434,0.28438984,703.26,701.76,1.06707791]
[1735609422733,1.48626909,703.08,701.76,1.06707791]
[1735609422933,0.28438984,703.26,701.96,1.06707791]
[1735609423134,0.26184804,703.25,701.96,1.06707791]
[1735609423334,0.28439792,703.24,701.96,1.06707791]
[1735609423536,0.26184019,703.23,701.96,1.06707791]
[1735609423733,0.28440601,703.22,701.96,1.06707791]
[1735609424132,1.48604696,703.21,701.96,1.06707791]
[1735609424329,0.2844141,703.2,702.0,1.06707791]
[1735609425137,0.2844141,703.2,701.97,1.06707791]
[1735609426639,0.2844141,703.2,701.96,1.06707791]
[1735609427735,0.2844141,703.2,701.66,1.06707791]
[1735609428039,0.2844141,703.2,701.67,0.28503427]
[1735609439340,0.2844141,703.2,701.69,1.06707791]
[1735609440546,0.2844141,703.2,701.73,1.06707791]
[1735609441346,0.2844141,703.2,701.72,1.06707791]
[1735609442547,0.2844141,703.2,701.76,1.06707791]
[1735609443447,0.2844141,703.2,701.81,1.06707791]
[1735609444447,0.2844141,703.2,701.87,1.06707791]
[1735609445150,0.2844141,703.2,701.8,1.06707791]
[1735609446452,0.2844141,703.2,701.82,1.06707791]
[1735609447455,0.2844141,703.2,701.84,1.06707791]
[1735609448654,0.2844141,703.2,701.86,1.06707791]
[1735609450655,0.2844141,703.2,701.67,0.28503427]
[1735609450656,0.2844141,703.2,701.88,1.06707791]
[1735609451451,0.2844141,703.2,701.89,1.06707791]
[1735609452555,0.2844141,703.2,701.69,1.06707791]
[1735609453654,0.2844141,703.2,701.73,1.06707791]
[1735609454356,0.2844141,703.2,701.76,1.06707791]
[1735609455453,0.2844141,703.2,701.79,1.06707791]
[1735609457552,0.2844141,703.2,701.78,1.06707791]
[1735609458559,0.2844141,703.2,701.81,1.06707791]
[1735609459661,0.2844141,703.2,701.78,1.06707791]
[1735609462265,0.2844141,703.2,701.67,0.28503427]
[1735609462266,0.2844141,703.2,701.74,1.06707791]
[1735609462664,0.26188089,703.19,701.74,1.06707791]
[1735609462865,0.26187603,703.18,701.74,1.06707791]
[1735609463058,0.28442219,703.18,701.74,1.06707791]
[1735609463262,1.33643018,703.18,701.86,1.06707791]
[1735609463460,0.28442624,703.17,701.86,1.06707791]
[1735609464464,0.28442624,703.17,701.92,1.06707791]
[1735609465265,0.28442624,703.17,701.82,1.06707791]
[1735609467670,0.28442624,703.17,701.81,1.06707791]
[1735609468770,0.28442624,703.17,701.78,1.06707791]
[1735609471070,0.28442624,703.17,701.67,0.28503427]
[1735609471071,0.28442624,703.17,701.79,1.06707791]
[1735609472067,0.28442624,703.17,701.81,1.06707791]
[1735609473167,0.28442624,703.17,701.82,1.06707791]
[1735609475774,0.28442624,703.17,701.8,1.06707791]
[1735609476772,0.28442624,703.17,701.81,1.06707791]
[1735609477776,0.28442624,703.17,701.88,1.06707791]
[1735609478979,0.28442624,703.17,701.89,1.06707791]
[1735609479980,0.28442624,703.17,701.75,1.06707791]
[1735609481082,0.28442624,703.17,701.77,1.06707791]
[1735609482185,0.28442624,703.17,701.76,1.06707791]
[1735609485987,0.28442624,703.17,701.82,1.06707791]
[1735609489090,0.28442624,703.17,701.79,1.06707791]
[1735609490290,1.05200799,703.11,701.97,1.06707791]
[1735609490788,0.28445455,703.1,701.97,1.06707791]
[1735609490985,1.77063372,703.1,701.97,1.06707791]
[1735609491385,1.77063372,703.1,701.67,0.28503427]
[1735609491386,1.05200799,703.09,702.0,1.06707791]
[1735609491590,0.28446265,703.08,702.0,1.06707791]
[1735609492391,1.33647064,703.08,702.0,1.06707791]
[1735609493391,0.28446265,703.08,702.02,1.06707791]
[1735609494589,0.28446265,703.08,702.01,1.06707791]
[1735609495992,0.28446265,703.08,702.03,1.06707791]
[1735609497193,1.33647064,703.08,702.04,1.06707791]
[1735609499498,1.33647064,703.08,701.95,1.06707791]
[1735609499499,0.28446265,703.08,702.09,1.06707791]
[1735609500401,0.28446265,703.08,702.12,1.06707791]
[1735609501505,0.28446265,703.08,701.75,2.17861741]
[1735609501506,0.28446265,703.08,702.1,1.06707791]
[1735609502405,0.28446265,703.08,702.05,1.06707791]
[1735609503704,0.28446265,703.08,701.67,0.28503427]
[1735609503705,0.28446265,703.08,702.03,1.06707791]
[1735609504807,0.28446265,703.08,702.0,1.06707791]
[1735609506009,0.28446265,703.08,701.96,1.06707791]
[1735609507311,0.28446265,703.08,701.97,1.06707791]
[1735609509208,0.28446265,703.08,701.96,1.06707791]
[1735609510310,0.28446265,703.08,701.95,1.06707791]
[1735609511610,0.28446265,703.08,701.98,1.06707791]
[1735609512411,0.28446265,703.08,701.67,0.28503427]
[1735609512412,0.28446265,703.08,702.0,1.06707791]
[1735609513713,0.28446265,703.08,702.02,1.06707791]
[1735609514814,0.28446265,703.08,702.04,1.06707791]
[1735609515914,0.28446265,703.08,702.03,1.06707791]
[1735609517310,0.28446265,703.08,701.75,1.2804935]
[1735609517513,0.28446265,703.08,701.67,0.28503427]
[1735609519218,0.26194457,703.07,701.67,0.28503427]
[1735609520016,0.28446265,703.08,701.67,0.28503427]
[1735609523121,0.28446265,703.08,701.76,1.06707791]
[1735609524319,0.28446265,703.08,701.86,1.06707791]
[1735609525320,0.26191706,703.07,701.86,1.06707791]
[1735609525522,0.26191706,703.07,701.81,1.06707791]
[1735609526515,0.26191706,703.07,701.72,1.06707791]
[1735609527317,0.28446265,703.08,701.72,1.06707791]
[1735609527521,0.26193207,703.07,701.72,1.06707791]
[1735609527718,1.05200799,703.05,701.72,1.06707791]
[1735609527925,0.54641448,703.04,701.72,1.06707791]
[1735609528220,0.26193565,703.03,701.72,1.06707791]
[1735609528824,1.48650717,703.02,701.72,1.06707791]
[1735609529124,0.54642662,703.01,701.72,1.06707791]
[1735609529324,0.26193565,703.0,701.72,1.06707791]
[1735609529624,0.28449906,702.99,701.72,1.06707791]
[1735609529821,0.26192081,702.98,701.72,1.06707791]
[1735609530124,0.28450716,702.97,701.72,1.06707791]
[1735609531022,0.28450716,702.97,701.71,1.06707791]
[1735609532125,0.28450716,702.97,701.81,1.06707791]
[1735609533129,0.28450716,702.97,701.86,1.06707791]
[1735609534423,0.28450716,702.97,701.67,0.28503427]
[1735609539833,0.28450716,702.97,701.82,1.06707791]
[1735609540732,0.28450716,702.97,701.67,0.28503427]
[1735609540733,0.28450716,702.97,701.87,1.06707791]
[1735609541928,0.28450716,702.97,701.88,1.06707791]
[1735609542930,0.28450716,702.97,701.95,1.06707791]
[1735609545636,0.28450716,702.97,701.86,1.06707791]
[1735609545641,0.28450716,702.97,701.97,1.06707791]
[1735609546630,0.28450716,702.97,701.94,1.06707791]
[1735609548036,0.28450716,702.97,701.96,1.06707791]
[1735609548938,0.28450716,702.97,701.95,1.06707791]
[1735609549934,0.28450716,702.97,701.91,1.06707791]
[1735609550940,0.28450716,702.97,701.88,1.06707791]
[1735609552034,0.28450716,702.97,701.89,1.06707791]
[1735609553438,0.28450716,702.97,701.8,1.06707791]
[1735609555336,0.28450716,702.97,701.81,1.06707791]
[1735609556438,0.28450716,702.97,701.68,1.06707791]
[1735609556740,0.28450716,702.97,701.69,0.28502615]
[1735609557642,0.28450716,702.97,701.71,1.06707791]
[1735609561245,0.28450716,702.97,701.69,0.28502615]
[1735609561246,0.28450716,702.97,701.72,1.06707791]
[1735609562441,0.28450716,702.97,701.69,0.28502615]
[1735609562442,0.28450716,702.97,701.8,1.06707791]
[1735609563346,0.28450716,702.97,701.93,1.06707791]
[1735609564643,0.28450716,702.97,701.95,1.06707791]
[1735609565850,0.28450716,702.97,702.01,1.06707791]
[1735609567051,0.28450716,702.97,702.05,1.06707791]
[1735609567952,0.28450716,702.97,701.95,1.06707791]
[1735609567953,0.28450716,702.97,701.98,1.06707791]
[1735609568853,0.26194953,702.96,701.98,1.06707791]
[1735609569253,0.26194953,702.96,701.7,1.06707791]
[1735609569453,0.28450716,702.97,701.7,1.06707791]
[1735609570054,0.28450716,702.97,701.73,1.06707791]
[1735609571048,0.28450716,702.97,701.69,0.28502615]
[1735609572248,0.28450716,702.97,701.96,1.06707791]
[1735609573557,0.28450716,702.97,701.9,1.06707791]
[1735609574952,0.28450716,702.97,701.91,1.06707791]
[1735609577458,0.28450716,702.97,701.82,1.06707791]
[1735609579161,0.28450716,702.97,701.81,1.06707791]
[1735609580258,0.28450716,702.97,701.85,1.06707791]
[1735609581460,0.28450716,702.97,701.83,1.06707791]
[1735609582560,0.28450716,702.97,701.86,1.06707791]
[1735609582757,0.28450716,702.97,701.87,0.28495305]
[1735609583560,0.28450716,702.97,701.87,1.35203096]
[1735609584961,0.28450716,702.97,701.88,1.06707791]
[1735609585162,1.48583018,703.31,701.88,1.06707791]
[1735609585864,1.48583018,703.31,701.89,0.28494493]
[1735609586064,1.48583018,703.31,701.93,1.06707791]
[1735609587364,1.48583018,703.31,701.89,0.28494493]
[1735609587365,1.48583018,703.31,701.92,1.06707791]
[1735609588566,0.28437366,703.3,701.91,1.06707791]
[1735609589368,0.28437366,703.3,701.92,1.06707791]
[1735609590663,0.28437366,703.3,701.9,1.06707791]
[1735609591667,0.28437366,703.3,701.89,0.28494493]
[1735609593068,0.28437366,703.3,701.89,1.35202284]
[1735609594270,0.28437366,703.3,701.98,1.06707791]
[1735609595461,0.28437366,703.3,701.96,1.06707791]
[1735609596768,0.28437366,703.3,701.89,0.28494493]
[1735609599464,0.2618724,703.29,701.89,0.28494493]
[1735609600465,0.28437366,703.3,701.89,0.28494493]
[1735609607267,0.2618879,703.29,701.89,0.28494493]
[1735609607472,0.28438579,703.27,701.89,0.28494493]
[1735609607672,0.2618879,703.26,701.89,0.28494493]
[1735609608269,0.28439792,703.24,701.89,0.28494493]
[1735609608878,1.4862638,703.23,701.89,0.28494493]
[1735609609076,0.28441006,703.21,701.89,0.28494493]
[1735609610571,0.26187003,703.2,701.89,0.28494493]
[1735609610774,0.28441815,703.19,701.89,0.28494493]
[1735609621477,0.26185345,703.18,701.89,0.28494493]
[1735609621882,0.28441815,703.19,701.89,0.28494493]
[1735609622083,0.26185311,703.18,701.89,0.28494493]
[1735609622582,0.28441815,703.19,701.89,0.28494493]
[1735609622787,0.26186071,703.18,701.89,0.28494493]
[1735609623486,0.28441815,703.19,701.89,0.28494493]
[1735609623882,0.28441815,703.19,701.9,1.06707791]
[1735609624880,0.28441815,703.19,701.89,0.28494493]
[1735609625889,0.28441815,703.19,701.93,1.06707791]
[1735609626886,0.28441815,703.19,701.98,1.06707791]
[1735609627786,0.28441815,703.19,701.97,1.06707791]
[1735609629286,0.28441815,703.19,702.09,1.06707791]
[1735609630287,0.28441815,703.19,702.08,1.06707791]
[1735609633389,0.28441815,703.19,702.1,1.06707791]
[1735609634489,0.28441815,703.19,702.08,1.06707791]
[1735609636094,0.28441815,703.19,702.06,1.06707791]
[1735609637389,0.28441815,703.19,701.97,1.06707791]
[1735609639697,0.28441815,703.19,701.99,1.06707791]
[1735609641098,0.28441815,703.19,701.97,1.06707791]
[1735609642495,0.28441815,703.19,701.99,1.06707791]
[1735609643296,0.28441815,703.19,701.97,1.06707791]
[1735609645195,0.28441815,703.19,702.0,1.06707791]
[1735609646099,0.28441815,703.19,701.89,0.28494493]
[1735609649002,0.28441815,703.19,701.91,1.06707791]
[1735609650303,0.28441815,703.19,701.89,0.28494493]
[1735609650304,0.28441815,703.19,701.93,1.06707791]
[1735609652306,0.28441815,703.19,701.99,1.06707791]
[1735609653410,0.28441815,703.19,702.08,1.06707791]
[1735609654301,0.28441815,703.19,702.11,1.06707791]
[1735609655706,0.28441815,703.19,702.13,1.06707791]
[1735609656606,0.28441815,703.19,702.16,1.06707791]
[1735609658206,0.28441815,703.19,702.2,1.06707791]
[1735609659310,0.28441815,703.19,702.21,1.06707791]
[1735609660410,0.28441815,703.19,701.89,0.28494493]
[1735609667716,0.28441815,703.19,701.93,1.06707791]
[1735609668715,0.28441815,703.19,701.89,0.28494493]
[1735609668716,0.28441815,703.19,702.0,1.06707791]
[1735609669715,0.28441815,703.19,702.01,1.06707791]
[1735609672119,0.28441815,703.19,701.97,1.06707791]
[1735609673220,0.28441815,703.19,702.05,1.06707791]
[1735609674117,0.28441815,703.19,702.04,1.06707791]
[1735609675023,0.28441815,703.19,701.94,1.06707791]
[1735609675024,0.28441815,703.19,702.02,1.06707791]
[1735609675822,0.28441815,703.19,702.01,1.06707791]
[1735609678321,0.28441815,703.19,702.06,1.06707791]
[1735609679018,0.28441815,703.19,702.04,1.06707791]
[1735609680023,0.28441815,703.19,702.06,1.06707791]
[1735609681729,0.28441815,703.19,702.08,1.06707791]
[1735609683026,0.28441815,703.19,701.99,1.06707791]
[1735609683930,0.28441815,703.19,702.0,1.06707791]
[1735609684928,0.28441815,703.19,701.99,1.06707791]
[1735609685826,0.28441815,703.19,701.89,0.28494493]
[1735609696231,0.28441815,703.19,701.9,1.06707791]
[1735609697437,0.28441815,703.19,701.91,1.06707791]
[1735609698735,0.28441815,703.19,702.14,1.06707791]
[1735609699935,0.28441815,703.19,702.16,1.06707791]
[1735609700837,0.28441815,703.19,701.89,0.28494493]
[1735609700838,0.28441815,703.19,702.22,1.06707791]
[1735609701834,0.28441815,703.19,702.17,1.06707791]
[1735609701835,1.05200799,703.17,702.17,1.06707791]
[1735609702131,0.28443028,703.16,702.17,1.06707791]
[1735609702837,1.48593592,703.15,702.06,1.06707791]
[1735609703030,0.28443837,703.14,702.06,1.06707791]
[1735609704138,0.28443837,703.14,702.04,1.06707791]
[1735609706041,0.28443837,703.14,702.1,1.06707791]
[1735609706941,0.28443837,703.14,702.08,1.06707791]
[1735609709444,0.28443837,703.14,702.13,1.06707791]
[1735609710444,0.28443837,703.14,702.17,1.06707791]
[1735609711240,0.28443837,703.14,702.13,1.06707791]
[1735609713344,0.27115593,703.14,702.12,1.06707791]
[1735609714345,0.27115593,703.14,702.11,1.06707791]
[1735609715545,0.27115593,703.14,702.08,1.06707791]
[1735609716948,0.27115593,703.14,701.97,1.06707791]
[1735609718146,0.27115593,703.14,701.98,1.06707791]
[1735609719250,0.27115593,703.14,702.02,1.06707791]
[1735609720545,0.27115593,703.14,702.01,1.06707791]
[1735609721444,0.27115593,703.14,701.89,0.28494493]
[1735609721445,0.27115593,703.14,702.1,1.06707791]
[1735609722348,0.27115593,703.14,702.17,1.06707791]
[1735609723350,0.27115593,703.14,702.15,1.06707791]
[1735609724649,0.27115593,703.14,702.16,1.06707791]
[1735609727152,0.27115593,703.14,702.13,1.06707791]
[1735609730057,1.48557646,703.43,702.11,1.06707791]
[1735609731258,1.48557646,703.43,702.18,1.06707791]
[1735609731860,1.05200799,703.76,702.18,1.06707791]
[1735609732060,1.48528585,703.53,702.18,1.06707791]
[1735609732260,0.64425547,704.42,701.89,0.28494493]
[1735609732261,1.05200799,703.83,702.15,1.06707791]
[1735609732462,0.2841676,703.81,702.15,1.06707791]
[1735609733761,0.2841676,703.81,702.18,1.06707791]
[1735609734157,1.48509042,703.8,702.18,1.06707791]
[1735609734863,1.48509042,703.8,702.14,1.06707791]
[1735609735861,1.48509042,703.8,702.1,1.06707791]
[1735609736553,1.48509042,703.8,702.11,0.28485564]
[1735609737356,0.28417567,703.79,702.11,0.28485564]
[1735609743367,0.28417567,703.79,702.36,1.06707791]
[1735609743658,0.28417567,703.79,702.37,0.2847502]
[1735609764079,1.48484224,703.78,702.37,0.2847502]
[1735609767281,0.28418375,703.77,702.41,1.06707791]
[1735609768381,0.28418375,703.77,702.37,0.2847502]
[1735609773083,0.26165748,703.76,702.37,0.2847502]
[1735609773283,0.28419182,703.75,702.37,0.2847502]
[1735609773484,0.26165748,703.74,702.37,0.2847502]
[1735609773885,0.26165748,703.74,702.42,1.06707791]
[1735609774781,0.26165748,703.74,702.37,1.35182811]
[1735609775184,0.26172211,703.73,702.37,1.35182811]
[1735609775381,0.26172211,703.72,702.37,1.35182811]
[1735609775583,0.26172211,703.71,702.37,1.35182811]
[1735609775784,0.26172211,703.7,702.37,1.06707791]
[1735609775984,0.26172211,703.69,702.16,1.06707791]
[1735609776287,0.26172211,703.68,702.16,1.06707791]
[1735609777182,0.26172211,703.68,702.0,1.06707791]
[1735609777389,0.2617516,703.67,702.0,1.06707791]
[1735609777587,0.2617516,703.66,702.0,1.06707791]
[1735609777786,0.28423625,703.64,702.0,1.06707791]
[1735609777986,0.2617516,703.63,702.0,1.06707791]
[1735609778182,0.28424837,703.61,702.0,1.06707791]
[1735609778387,0.2617516,703.6,702.04,1.06707791]
[1735609779387,0.28426049,703.58,702.04,1.06707791]
[1735609779583,0.2617516,703.57,702.04,1.06707791]
[1735609779782,0.2617516,703.57,701.51,2.17861741]
[1735609779783,0.28427261,703.55,701.97,1.06707791]
[1735609779983,0.2617516,703.54,701.97,1.06707791]
[1735609780290,0.28428473,703.52,701.97,1.06707791]
[1735609780487,0.2617516,703.51,701.97,1.06707791]
[1735609780685,0.28429282,703.5,701.97,1.06707791]
[1735609780883,0.2617516,703.49,701.83,1.06707791]
[1735609781190,0.2843009,703.48,701.84,0.28496523]
[1735609781389,0.2617516,703.47,701.84,0.28496523]
[1735609781589,0.2843009,703.48,701.84,0.28496523]
[1735609786392,1.48571916,703.47,701.84,0.28496523]
[1735609786591,0.28430898,703.46,701.84,0.28496523]
[1735609793504,0.26178684,703.45,701.84,0.28496523]
[1735609794003,0.28430898,703.46,701.84,0.28496523]
[1735609795005,0.28430898,703.46,701.9,1.06707791]
[1735609796103,0.28430898,703.46,702.01,1.06707791]
[1735609797104,0.28430898,703.46,702.11,1.06707791]
[1735609798398,0.28430898,703.46,702.01,1.06707791]
[1735609798399,0.28430898,703.46,702.14,1.06707791]
[1735609799603,0.28430898,703.46,701.96,1.06707791]
[1735609801008,0.28430898,703.46,702.01,1.06707791]
[1735609801910,0.28430898,703.46,701.94,1.06707791]
[1735609802406,0.28430898,703.46,701.96,0.28491651]
[1735609803009,0.28430898,703.46,701.98,1.06707791]
[1735609804010,0.28430898,703.46,701.99,1.06707791]
[1735609804913,0.28430898,703.46,701.97,1.06707791]
[1735609806914,0.28430898,703.46,701.96,0.28491651]
[1735609824833,0.28430898,703.46,702.29,1.06707791]
[1735609825629,0.28430898,703.46,702.04,1.2804935]
[1735609825630,0.28430898,703.46,702.34,1.06707791]
[1735609827336,0.28430898,703.46,702.36,1.06707791]
[1735609828236,0.28430898,703.46,702.35,1.06707791]
[1735609829535,0.28430898,703.46,702.38,1.06707791]
[1735609830635,0.28430898,703.46,702.3,1.06707791]
[1735609831531,0.28430898,703.46,702.33,1.06707791]
[1735609834741,0.28430898,703.46,702.31,1.06707791]
[1735609835842,0.28430898,703.46,701.79,2.17861741]
[1735609835843,0.28430898,703.46,701.71,1.06707791]
[1735609836940,0.28430898,703.46,701.64,1.06707791]